fUSD/lending_fUSD_20250217
["ID","MTS","AMOUNT","RATE_DAILY","PERIOD"]
[353341679,1739782286197,-1494.23,0.00014356,2]
[353341680,1739782286206,-864.83,0.00014356,2]
[353341681,1739782286217,-935.35,0.00014356,2]
[353341682,1739782286227,-500.0,0.00014356,2]
[353341683,1739782286237,-615.69,0.00014356,2]
[353341684,1739782286247,-677.77,0.00014356,2]
[353341685,1739782286257,-500.0,0.00014356,2]
[353341686,1739782286267,-707.08,0.00014356,2]
[353341687,1739782286277,-1876.33,0.00014356,2]
[353341688,1739782286288,-2554.16,0.00014356,2]
[353341689,1739782286298,-1026.29,0.00014356,2]
[353341690,1739782286307,-1043.92,0.00014356,2]
[353341691,1739782286318,-500.0,0.00014356,2]
[353341692,1739782286328,-500.0,0.00014356,2]
[353341693,1739782286338,-1889.27,0.00014356,2]
[353341694,1739782286347,-500.0,0.00014356,2]
[353341695,1739782286357,-500.0,0.00014356,2]
[353341696,1739782286366,-875.92,0.00014356,2]
[353341697,1739782286376,-1579.86,0.00014356,2]
[353341698,1739782286386,-500.0,0.00014356,2]
[353341699,1739782286396,-500.0,0.00014356,2]
[353341700,1739782286408,-1021.86,0.00014356,2]
[353341701,1739782286418,-2430.21,0.00014356,2]
[353341702,1739782286428,-1775.26,0.00014356,2]
[353341703,1739782286438,-1126.39,0.00014356,2]
[353341704,1739782286449,-500.0,0.00014356,2]
[353341705,1739782286459,-1246.28,0.00014356,2]
[353341706,1739782286468,-1440.41,0.00014356,2]
[353341707,1739782286478,-1157.83,0.00014356,2]
[353341708,1739782286490,-500.0,0.00014356,2]
[353341709,1739782286499,-579.64,0.00014356,2]
[353341710,1739782286509,-392.08385189,0.00014356,2]
[353341711,1739782286519,-736.98,0.00014356,2]
[353341712,1739782286528,-602.96,0.00014356,2]
[353341713,1739782286538,-662.81,0.00014356,2]
[353341714,1739782286547,-1734.6,0.00014356,2]
[353341715,1739782286557,-996.06,0.00014356,2]
[353341716,1739782286567,-500.0,0.00014356,2]
[353341717,1739782286577,-1538.42,0.00014356,2]
[353341718,1739782286588,-1344.96,0.00014356,2]
[353341719,1739782286598,-500.0,0.00014356,2]
[353341720,1739782286607,-1060.38,0.00014356,2]
[353341721,1739782286617,-1225.17,0.00014356,2]
[353341722,1739782286628,-500.0,0.00014356,2]
[353341723,1739782286638,-500.0,0.00014356,2]
[353341724,1739782286648,-1000.0,0.00014356,2]
[353341725,1739782286657,-879.19,0.00014356,2]
[353341726,1739782286667,-627.0,0.00014356,2]
[353341727,1739782286677,-5333.3,0.00014356,2]
[353341728,1739782286687,-500.0,0.00014356,2]
[353341729,1739782286696,-1241.74,0.00014356,2]
[353341730,1739782286706,-500.0,0.00014356,2]
[353341731,1739782286716,-1771.28,0.00014356,2]
[353341732,1739782286725,-885.43,0.00014356,2]
[353341733,1739782286734,-1586.54,0.00014356,2]
[353341734,1739782286744,-1307.73,0.00014356,2]
[353341735,1739782286754,-756.31,0.00014356,2]
[353341736,1739782286764,-500.0,0.00014356,2]
[353341737,1739782286775,-917.32,0.00014356,2]
[353341738,1739782286785,-707.23,0.00014356,2]
[353341739,1739782286796,-500.0,0.00014356,2]
[353341740,1739782286807,-2401.78,0.00014356,2]
[353341741,1739782286819,-1455.33,0.00014356,2]
[353341742,1739782286828,-1605.77,0.00014356,2]
[353341743,1739782286838,-500.0,0.00014356,2]
[353341744,1739782286848,-110.16547924,0.00014356,2]
[353341745,1739782287226,-978.98452076,0.00014356,2]
[353341746,1739782287237,-1269.98,0.00014356,2]
[353341747,1739782287247,-998.9,0.00014356,2]
[353341748,1739782287257,-1551.79,0.00014356,2]
[353341749,1739782287267,-500.0,0.00014356,2]
[353341750,1739782287277,-1847.02,0.00014356,2]
[353341751,1739782287287,-586.8,0.00014356,2]
[353341752,1739782287297,-500.0,0.00014356,2]
[353341753,1739782287306,-1701.27,0.00014356,2]
[353341754,1739782287315,-600.56,0.00014356,2]
[353341755,1739782287326,-886.89,0.00014356,2]
[353341756,1739782287336,-1445.61,0.00014356,2]
[353341757,1739782287346,-1575.03,0.00014356,2]
[353341758,1739782287355,-844.32377924,0.00014356,2]
[353341759,1739782287389,-500.0,0.00013,2]
[353341760,1739782287398,-832.86622076,0.00014356,2]
[353341761,1739782287409,-1797.4,0.00014356,2]
[353341762,1739782287419,-500.0,0.00014356,2]
[353341763,1739782287430,-922.01,0.00014356,2]
[353341764,1739782287440,-500.0,0.00014356,2]
[353341765,1739782287451,-1271.08,0.00014356,2]
[353341766,1739782287460,-1813.57,0.00014356,2]
[353341767,1739782287470,-1220.73,0.00014356,2]
[353341768,1739782287480,-500.0,0.00014356,2]
[353341769,1739782287491,-411.40504594,0.00014356,2]
[353341770,1739782287503,-88.59495406,0.00014356,2]
[353341771,1739782287513,-1728.58,0.00014356,2]
[353341772,1739782287523,-4549.55,0.00014356,2]
[353341773,1739782287533,-824.72,0.00014356,2]
[353341774,1739782287543,-500.0,0.00014356,2]
[353341775,1739782287552,-1386.78,0.00014356,2]
[353341776,1739782287562,-2188.82,0.00014356,2]
[353341777,1739782287572,-500.0,0.00014356,2]
[353341778,1739782287581,-162.07760594,0.00014356,2]
[353341779,1739782287595,-337.92239406,0.00014356,2]
[353341780,1739782287604,-500.0,0.00014356,2]
[353341781,1739782287614,-571.8,0.00014356,2]
[353341782,1739782287624,-500.0,0.00014356,2]
[353341783,1739782287634,-988.86,0.00014356,2]
[353341784,1739782287643,-500.0,0.00014356,2]
[353341785,1739782287653,-1847.84,0.00014356,2]
[353341786,1739782287662,-687.99892794,0.00014356,2]
[353341787,1739782287675,-365.02107206,0.00014356,2]
[353341788,1739782287685,-1440.2,0.00014356,2]
[353341789,1739782287695,-1037.56,0.00014356,2]
[353341790,1739782287705,-557.11,0.00014356,2]
[353341791,1739782287715,-500.0,0.00014356,2]
[353341792,1739782287725,-802.9,0.00014356,2]
[353341793,1739782287735,-500.0,0.00014356,2]
[353341794,1739782287744,-2029.25,0.00014356,2]
[353341795,1739782287758,-683.14,0.00014356,2]
[353341796,1739782287767,-562.58,0.00014356,2]
[353341797,1739782287777,-1363.24,0.00014356,2]
[353341798,1739782287787,-500.0,0.00014356,2]
[353341799,1739782287796,-664.98,0.00014356,2]
[353341800,1739782287806,-509.38299424,0.00014356,2]
[353341801,1739782287815,-994.26104501,0.00014356,2]
[353341802,1739782287849,-715.79895499,0.00014356,2]
[353341803,1739782287858,-603.02002737,0.00014356,2]
[353341804,1739782288265,-500.0,0.00013,2]
[353341805,1739782288275,-500.0,0.00013,2]
[353341806,1739782288285,-256.6,0.00013,2]
[353341807,1739782288309,-243.4,0.00013,2]
[353341808,1739782288321,-500.0,0.00013,2]
[353341809,1739782288330,-500.0,0.00013,2]
[353341810,1739782288340,-500.0,0.00013,2]
[353341811,1739782288350,-46.27997263,0.00014356,2]
[353341812,1739782288360,-1213.04,0.00014356,2]
[353341813,1739782288370,-2322.5625988,0.00014356,2]
[353341814,1739782288382,-209.7874012,0.00014356,2]
[353341815,1739782288392,-500.0,0.00014356,2]
[353341816,1739782288402,-538.6,0.00014356,2]
[353341817,1739782288414,-500.0,0.00014356,2]
[353341818,1739782288425,-108.97329753,0.00014356,2]
[353341819,1739782288437,-400.66,0.00014356,2]
[353341820,1739782288451,-193.24670247,0.00014356,2]
[353341821,1739782288461,-500.0,0.00014356,2]
[353341822,1739782288471,-711.06029225,0.00014356,2]
[353341823,1739782288514,-500.0,0.00013,2]
[353341824,1739782288524,-620.90970775,0.00014356,2]
[353341825,1739782288534,-848.67029225,0.00014356,2]
[353341826,1739782288653,-51.67970775,0.00014356,2]
[353341827,1739782288662,-606.3,0.00014356,2]
[353341828,1739782288672,-500.0,0.00014356,2]
[353341829,1739782288682,-500.0,0.00014356,2]
[353341830,1739782288692,-500.0,0.00014356,2]
[353341831,1739782288703,-1040.4,0.00014356,2]
[353341832,1739782288714,-1450.57,0.00014356,2]
[353341833,1739782288725,-158.45029225,0.00014356,2]
[353341834,1739782288737,-830.61957666,0.00014356,2]
[353341835,1739782288970,-395.412005,0.00013,2]
[353341836,1739782288992,-104.587995,0.00013,2]
[353341837,1739782289002,-500.0,0.00013,2]
[353341838,1739782289011,-500.0,0.00013,2]
[353341839,1739782289020,-500.0,0.00013,2]
[353341840,1739782289030,-500.0,0.00013,2]
[353341841,1739782289039,-500.0,0.00013,2]
[353341842,1739782289049,-500.0,0.00013,2]
[353341843,1739782289058,-288.73013109,0.00014356,2]
[353341844,1739782289067,-500.0,0.00014356,2]
[353341845,1739782289078,-1045.42,0.00014356,2]
[353341846,1739782289088,-500.0,0.00014356,2]
[353341847,1739782289097,-844.67,0.00014356,2]
[353341848,1739782289107,-1330.04,0.00014356,2]
[353341849,1739782289116,-1239.77,0.00014356,2]
[353341850,1739782289126,-545.47,0.00014356,2]
[353341851,1739782289135,-753.37,0.00014356,2]
[353341852,1739782289144,-1295.43,0.00014356,2]
[353341853,1739782289154,-500.0,0.00014356,2]
[353341854,1739782289164,-500.0,0.00014356,2]
[353341855,1739782289174,-538.43,0.00014356,2]
[353341856,1739782289184,-500.0,0.00014356,2]
[353341857,1739782289193,-1569.09,0.00014356,2]
[353341858,1739782289203,-1060.0,0.00014356,2]
[353341859,1739782289212,-600.98370454,0.00014424,2]
[353341860,1739782289222,-2002.0,0.00014436,2]
[353341861,1739782289231,-808.574074,0.00014438,2]
[353341862,1739782289241,-655.639204,0.00014438,2]
[353341863,1739782289251,-500.0,0.00014438,2]
[353341864,1739782289260,-500.0,0.00014438,2]
[353341865,1739782289270,-500.0,0.00014438,2]
[353341866,1739782289279,-500.0,0.00014438,2]
[353341867,1739782289288,-500.0,0.00014438,2]
[353341868,1739782289298,-500.0,0.00014438,2]
[353341869,1739782289308,-500.0,0.00014438,2]
[353341870,1739782289319,-500.0,0.00014438,2]
[353341871,1739782289329,-500.0,0.00014438,2]
[353341872,1739782289338,-500.0,0.00014438,2]
[353341873,1739782289348,-500.0,0.00014438,2]
[353341874,1739782289358,-500.0,0.00014438,2]
[353341875,1739782289367,-500.0,0.00014438,2]
[353341876,1739782289377,-500.0,0.00014438,2]
[353341877,1739782289386,-500.0,0.00014438,2]
[353341878,1739782289396,-500.0,0.00014438,2]
[353341879,1739782289406,-500.0,0.00014438,2]
[353341880,1739782289418,-593.48767062,0.00014438,2]
[353341881,1739782289427,-500.0,0.00014438,2]
[353341882,1739782289436,-604.74,0.00014438,2]
[353341883,1739782289447,-208.38153777,0.00014438,2]
[353341884,1739782289457,-575.7,0.00014438,2]
[353341885,1739782289467,-907.72,0.00014438,2]
[353341886,1739782289476,-500.0,0.00014438,2]
[353341887,1739782289488,-500.0,0.00014438,2]
[353341888,1739782289497,-732.02,0.00014438,2]
[353341889,1739782289506,-562.63,0.00014438,2]
[353341890,1739782289516,-500.0,0.00014438,2]
[353341891,1739782289525,-500.0,0.00014438,2]
[353341892,1739782289535,-951.64,0.00014438,2]
[353341893,1739782289545,-500.0,0.00014438,2]
[353341894,1739782289554,-633.77,0.00014438,2]
[353341895,1739782289566,-664.66,0.00014438,2]
[353341896,1739782289579,-500.0,0.00014438,2]
[353341897,1739782289589,-500.0,0.00014438,2]
[353341898,1739782289599,-722.21,0.00014438,2]
[353341899,1739782289608,-592.21,0.00014438,2]
[353341900,1739782289618,-500.0,0.00014438,2]
[353341901,1739782289629,-500.0,0.00014438,2]
[353341902,1739782289639,-500.0,0.00014438,2]
[353341903,1739782289649,-507.13,0.00014438,2]
[353341904,1739782289659,-500.0,0.00014438,2]
[353341905,1739782289668,-995.97,0.00014438,2]
[353341906,1739782289678,-536.86,0.00014438,2]
[353341907,1739782289688,-566.9,0.00014438,2]
[353341908,1739782289698,-500.0,0.00014438,2]
[353341909,1739782289708,-500.0,0.00014438,2]
[353341910,1739782289719,-500.0,0.00014438,2]
[353341911,1739782289730,-500.0,0.00014438,2]
[353341912,1739782289740,-500.0,0.00014438,2]
[353341913,1739782289751,-500.0,0.00014438,2]
[353341914,1739782289761,-500.0,0.00014438,2]
[353341915,1739782289771,-500.0,0.00014438,2]
[353341916,1739782289780,-500.0,0.00014438,2]
[353341917,1739782289790,-500.0,0.00014438,2]
[353341918,1739782289800,-500.0,0.00014438,2]
[353341919,1739782289810,-738.44,0.00014438,2]
[353341920,1739782289819,-500.0,0.00014438,2]
[353341921,1739782289830,-580.16,0.00014438,2]
[353341922,1739782289839,-619.49,0.00014438,2]
[353341923,1739782289849,-560.76,0.00014438,2]
[353341924,1739782289858,-500.0,0.00014438,2]
[353341925,1739782289868,-500.0,0.00014438,2]
[353341926,1739782289878,-500.0,0.00014438,2]
[353341927,1739782289888,-536.91,0.00014438,2]
[353341928,1739782289898,-500.0,0.00014438,2]
[353341929,1739782289908,-462.56979342,0.00014438,2]
[353341930,1739782289918,-1077.47,0.00014438,2]
[353341931,1739782289927,-558.82,0.00014438,2]
[353341932,1739782289938,-554.24551355,0.00014438,2]
[353341933,1739782289947,-850.62,0.00014438,2]
[353341934,1739782289957,-708.1,0.00014438,2]
[353341935,1739782289968,-500.0,0.00014438,2]
[353341936,1739782289977,-641.57,0.00014438,2]
[353341937,1739782289987,-528.32,0.00014438,2]
[353341938,1739782289997,-500.0,0.00014438,2]
[353341939,1739782290007,-684.2,0.00014438,2]
[353341940,1739782290017,-890.46,0.00014438,2]
[353341941,1739782290027,-612.05,0.00014438,2]
[353341942,1739782290037,-500.0,0.00014438,2]
[353341943,1739782290047,-568.28,0.00014438,2]
[353341944,1739782290057,-500.0,0.00014438,2]
[353341945,1739782290067,-537.33,0.00014438,2]
[353341946,1739782290078,-647.11,0.00014438,2]
[353341947,1739782290088,-743.6,0.00014438,2]
[353341948,1739782290098,-559.89,0.00014438,2]
[353341949,1739782290108,-649.94,0.00014438,2]
[353341950,1739782290119,-783.7,0.00014438,2]
[353341951,1739782290129,-500.0,0.00014438,2]
[353341952,1739782290140,-500.0,0.00014438,2]
[353341953,1739782290150,-344.3,0.00014438,2]
[353341954,1739782290160,-500.0,0.00014438,2]
[353341955,1739782290171,-560.76,0.00014438,2]
[353341956,1739782290180,-950.17,0.00014438,2]
[353341957,1739782290189,-500.0,0.00014438,2]
[353341958,1739782290199,-593.13,0.00014438,2]
[353341959,1739782290208,-561.01,0.00014438,2]
[353341960,1739782290218,-500.0,0.00014438,2]
[353341961,1739782290227,-500.0,0.00014438,2]
[353341962,1739782290237,-500.0,0.00014438,2]
[353341963,1739782290247,-500.0,0.00014438,2]
[353341964,1739782290256,-190.39173806,0.00014438,2]
[353341965,1739782290265,-500.0,0.00014438,2]
[353341966,1739782290275,-500.0,0.00014438,2]
[353341967,1739782290284,-622.63,0.00014438,2]
[353341968,1739782290295,-500.0,0.00014438,2]
[353341969,1739782290305,-508.41,0.00014438,2]
[353341970,1739782290316,-500.0,0.00014438,2]
[353341971,1739782290327,-500.0,0.00014438,2]
[353341972,1739782290337,-716.43,0.00014438,2]
[353341973,1739782290346,-530.22,0.00014438,2]
[353341974,1739782290355,-733.96,0.00014438,2]
[353341975,1739782290365,-500.0,0.00014438,2]
[353341976,1739782290375,-500.0,0.00014438,2]
[353341977,1739782290384,-673.88,0.00014438,2]
[353341978,1739782290394,-500.0,0.00014438,2]
[353341979,1739782290404,-511.13,0.00014438,2]
[353341980,1739782290416,-500.0,0.00014438,2]
[353341981,1739782290426,-559.67,0.00014438,2]
[353341982,1739782290436,-500.0,0.00014438,2]
[353341983,1739782290446,-778.97,0.00014438,2]
[353341984,1739782290456,-500.0,0.00014438,2]
[353341985,1739782290466,-500.0,0.00014438,2]
[353341986,1739782290475,-500.0,0.00014438,2]
[353341987,1739782290486,-500.0,0.00014438,2]
[353341988,1739782290497,-500.0,0.00014438,2]
[353341989,1739782290508,-500.0,0.00014438,2]
[353341990,1739782290519,-500.0,0.00014438,2]
[353341991,1739782290529,-1031.51,0.00014438,2]
[353341992,1739782290539,-500.0,0.00014438,2]
[353341993,1739782290549,-662.08,0.00014438,2]
[353341994,1739782290559,-500.0,0.00014438,2]
[353341995,1739782290568,-766.22,0.00014438,2]
[353341996,1739782290581,-500.0,0.00014438,2]
[353341997,1739782290591,-500.0,0.00014438,2]
[353341998,1739782290600,-500.0,0.00014438,2]
[353341999,1739782290610,-500.0,0.00014438,2]
[353342000,1739782290620,-500.0,0.00014438,2]
[353342001,1739782290629,-572.19,0.00014438,2]
[353342002,1739782290639,-500.0,0.00014438,2]
[353342003,1739782290649,-500.0,0.00014438,2]
[353342004,1739782290659,-817.69,0.00014438,2]
[353342005,1739782290668,-238.99553544,0.00014438,2]
[353342006,1739782290678,-600.80110367,0.00014438,2]
[353342007,1739782290687,-519.96,0.00014438,2]
[353342008,1739782290697,-500.0,0.00014438,2]
[353342009,1739782290707,-522.84,0.00014438,2]
[353342010,1739782290860,-500.0,0.00014438,2]
[353342011,1739782290870,-500.0,0.00014438,2]
[353342012,1739782290880,-500.0,0.00014438,2]
[353342013,1739782290889,-614.77,0.00014438,2]
[353342014,1739782290899,-2827.32,0.00014438,2]
[353342015,1739782290908,-500.0,0.00014438,2]
[353342016,1739782290918,-1812.07,0.00014438,2]
[353342017,1739782290927,-520.4,0.00014438,2]
[353342018,1739782290937,-802.50291376,0.00014438,2]
[353342019,1739782290953,-16.63708624,0.00014438,2]
[353342020,1739782290963,-1906.7486578,0.00014438,2]
[353342021,1739782290975,-2465.8113422,0.00014438,2]
[353342022,1739782290985,-500.0,0.00014438,2]
[353342023,1739782290994,-500.0,0.00014438,2]
[353342024,1739782291004,-500.0,0.00014438,2]
[353342025,1739782291013,-538.08,0.00014438,2]
[353342026,1739782291023,-901.12,0.00014438,2]
[353342027,1739782291032,-500.0,0.00014438,2]
[353342028,1739782291042,-1422.17,0.00014438,2]
[353342029,1739782291051,-1334.19,0.00014438,2]
[353342030,1739782291060,-424.7074493,0.00014438,2]
[353342031,1739782291074,-392.8925507,0.00014438,2]
[353342032,1739782291083,-1013.1991093,0.00014438,2]
[353342033,1739782291094,-1228.49761,0.00014438,2]
[353342034,1739782291106,-14.6432807,0.00014438,2]
[353342035,1739782291116,-771.38,0.00014438,2]
[353342036,1739782291126,-507.06946216,0.00014438,2]
[353342037,1739782291137,-735.66,0.00014438,2]
[353342038,1739782291146,-2032.65,0.00014438,2]
[353342039,1739782291156,-749.45,0.00014438,2]
[353342040,1739782291165,-1125.52,0.00014438,2]
[353342041,1739782291174,-772.0,0.00014438,2]
[353342042,1739782291184,-739.22,0.00014438,2]
[353342043,1739782291193,-500.0,0.00014438,2]
[353342044,1739782291202,-546.19,0.00014438,2]
[353342045,1739782291212,-1069.07,0.00014438,2]
[353342046,1739782291222,-1494.23,0.00014438,2]
[353342047,1739782291233,-864.83,0.00014438,2]
[353342048,1739782291242,-935.35,0.00014438,2]
[353342049,1739782291252,-199.77508284,0.00014438,2]
[353342050,1739782291262,-615.69,0.00014438,2]
[353342051,1739782291272,-677.77,0.00014438,2]
[353342052,1739782291282,-500.0,0.00014438,2]
[353342053,1739782291292,-707.08,0.00014438,2]
[353342054,1739782291301,-1876.33,0.00014438,2]
[353342055,1739782291311,-2554.16,0.00014438,2]
[353342056,1739782291320,-1043.92,0.00014438,2]
[353342057,1739782291330,-1026.29,0.00014438,2]
[353342058,1739782291340,-500.0,0.00014438,2]
[353342059,1739782291349,-500.0,0.00014438,2]
[353342060,1739782291359,-1889.27,0.00014438,2]
[353342061,1739782291368,-500.0,0.00014438,2]
[353342062,1739782291377,-500.0,0.00014438,2]
[353342063,1739782291387,-875.92,0.00014438,2]
[353342064,1739782291397,-474.9538599,0.00014438,2]
[353342065,1739782291937,-315.5451,0.00013,2]
[353342066,1739782291966,-184.4549,0.00013,2]
[353342067,1739782291976,-500.0,0.00013,2]
[353342068,1739782291985,-463.05146631,0.00013,2]
[353342069,1739782291996,-36.94853369,0.00013,2]
[353342070,1739782292007,-500.0,0.00013,2]
[353342071,1739782292016,-500.0,0.00013,2]
[353342072,1739782292025,-500.0,0.00013,2]
[353342073,1739782292035,-500.0,0.00013,2]
[353342074,1739782292044,-500.0,0.00013,2]
[353342075,1739782292054,-500.0,0.00013698,2]
[353342076,1739782292063,-291.99,0.00013698,2]
[353342077,1739782292073,-500.0,0.00013698,2]
[353342078,1739782292082,-500.0,0.0001378,2]
[353342079,1739782292092,-1104.9061401,0.00014438,2]
[353342080,1739782292102,-500.0,0.00014438,2]
[353342081,1739782292111,-500.0,0.00014438,2]
[353342082,1739782292120,-1021.86,0.00014438,2]
[353342083,1739782292130,-2430.21,0.00014438,2]
[353342084,1739782292141,-1775.26,0.00014438,2]
[353342085,1739782292150,-1126.39,0.00014438,2]
[353342086,1739782292159,-500.0,0.00014438,2]
[353342087,1739782292169,-1246.28,0.00014438,2]
[353342088,1739782292178,-1440.41,0.00014438,2]
[353342089,1739782292189,-1157.83,0.00014438,2]
[353342090,1739782292198,-500.0,0.00014438,2]
[353342091,1739782292208,-579.64,0.00014438,2]
[353342092,1739782292217,-736.98,0.00014438,2]
[353342093,1739782292227,-602.96,0.00014438,2]
[353342094,1739782292236,-662.81,0.00014438,2]
[353342095,1739782292246,-1734.6,0.00014438,2]
[353342096,1739782292256,-996.06,0.00014438,2]
[353342097,1739782292265,-1538.42,0.00014438,2]
[353342098,1739782292275,-1344.96,0.00014438,2]
[353342099,1739782292287,-500.0,0.00014438,2]
[353342100,1739782292296,-1060.38,0.00014438,2]
[353342101,1739782292306,-1225.17,0.00014438,2]
[353342102,1739782292315,-500.0,0.00014438,2]
[353342103,1739782292326,-500.0,0.00014438,2]
[353342104,1739782292335,-1000.0,0.00014438,2]
[353342105,1739782292345,-879.19,0.00014438,2]
[353342106,1739782292354,-627.0,0.00014438,2]
[353342107,1739782292364,-5333.3,0.00014438,2]
[353342108,1739782292373,-500.0,0.00014438,2]
[353342109,1739782292385,-1241.74,0.00014438,2]
[353342110,1739782292395,-500.0,0.00014438,2]
[353342111,1739782292405,-1771.28,0.00014438,2]
[353342112,1739782292419,-885.43,0.00014438,2]
[353342113,1739782292428,-1586.54,0.00014438,2]
[353342114,1739782292438,-1307.73,0.00014438,2]
[353342115,1739782292447,-756.31,0.00014438,2]
[353342116,1739782292458,-500.0,0.00014438,2]
[353342117,1739782292468,-707.23,0.00014438,2]
[353342118,1739782292477,-917.32,0.00014438,2]
[353342119,1739782292487,-500.0,0.00014438,2]
[353342120,1739782292497,-2401.78,0.00014438,2]
[353342121,1739782292506,-1455.33,0.00014438,2]
[353342122,1739782292516,-1605.77,0.00014438,2]
[353342123,1739782292525,-500.0,0.00014438,2]
[353342124,1739782292535,-1089.15,0.00014438,2]
[353342125,1739782292545,-1269.98,0.00014438,2]
[353342126,1739782292555,-998.9,0.00014438,2]
[353342127,1739782292567,-1551.79,0.00014438,2]
[353342128,1739782292579,-500.0,0.00014438,2]
[353342129,1739782292589,-1847.02,0.00014438,2]
[353342130,1739782292599,-586.8,0.00014438,2]
[353342131,1739782292609,-500.0,0.00014438,2]
[353342132,1739782292619,-1701.27,0.00014438,2]
[353342133,1739782292628,-886.89,0.00014438,2]
[353342134,1739782292638,-1445.61,0.00014438,2]
[353342135,1739782292647,-1575.03,0.00014438,2]
[353342136,1739782292656,-600.56,0.00014438,2]
[353342137,1739782292665,-1677.19,0.00014438,2]
[353342138,1739782292675,-1797.4,0.00014438,2]
[353342139,1739782292684,-500.0,0.00014438,2]
[353342140,1739782292694,-922.01,0.00014438,2]
[353342141,1739782292704,-500.0,0.00014438,2]
[353342142,1739782292713,-1271.08,0.00014438,2]
[353342143,1739782292724,-1813.57,0.00014438,2]
[353342144,1739782292733,-1220.73,0.00014438,2]
[353342145,1739782292743,-500.0,0.00014438,2]
[353342146,1739782292753,-500.0,0.00014438,2]
[353342147,1739782292763,-1728.58,0.00014438,2]
[353342148,1739782292773,-4549.55,0.00014438,2]
[353342149,1739782292782,-824.72,0.00014438,2]
[353342150,1739782292791,-1386.78,0.00014438,2]
[353342151,1739782292800,-500.0,0.00014438,2]
[353342152,1739782292810,-2188.82,0.00014438,2]
[353342153,1739782292819,-641.82143225,0.00014438,2]
[353342154,1739782292830,-500.0,0.00014438,2]
[353342155,1739782292839,-500.0,0.00014438,2]
[353342156,1739782292850,-571.8,0.00014438,2]
[353342157,1739782292859,-500.0,0.00014438,2]
[353342158,1739782292869,-988.86,0.00014438,2]
[353342159,1739782292878,-500.0,0.00014438,2]
[353342160,1739782292887,-1847.84,0.00014438,2]
[353342161,1739782292898,-1053.02,0.00014438,2]
[353342162,1739782292907,-1440.2,0.00014438,2]
[353342163,1739782292917,-1037.56,0.00014438,2]
[353342164,1739782292927,-557.11,0.00014438,2]
[353342165,1739782292936,-500.0,0.00014438,2]
[353342166,1739782292945,-802.9,0.00014438,2]
[353342167,1739782292955,-500.0,0.00014438,2]
[353342168,1739782292965,-2029.25,0.00014438,2]
[353342169,1739782292974,-683.14,0.00014438,2]
[353342170,1739782292983,-562.58,0.00014438,2]
[353342171,1739782292992,-1363.24,0.00014438,2]
[353342172,1739782293002,-500.0,0.00014438,2]
[353342173,1739782293011,-664.98,0.00014438,2]
[353342174,1739782293021,-1710.06,0.00014438,2]
[353342175,1739782293032,-649.3,0.00014438,2]
[353342176,1739782293041,-1213.04,0.00014438,2]
[353342177,1739782293051,-2532.35,0.00014438,2]
[353342178,1739782293061,-500.0,0.00014438,2]